[Event "Charlotte Spring Classic 2021"]
[Site "Charlotte"]
[Date "2021.03.27"]
[Round "2.1"]
[White "Wu, Rochelle"]
[Black "Prasanna Raghuram Rao"]
[Result "1-0"]
[ECO "D00"]
[WhiteElo "2126"]
[BlackElo "2437"]
[Annotator "ChessBase"]
[PlyCount "77"]
[EventDate "2021.03.22"]
[EventType "swiss"]
[EventCountry "USA"]
[SourceTitle "playchess.com"]
[Source "ChessBase"]
[SourceQuality "1"]
[TimeControl "5400+30"]

1. d4 {[%emt 0:00:00]} Nf6 {[%emt 0:03:44]} 2. Bg5 {[%emt 0:00:00]} d5 {[%emt 0:02:03]} 3. Nd2 {[%emt 0:01:29]} c5 {[%emt 0:01:07]} 4. Bxf6 {[%emt 0:02:34]} gxf6 {[%emt 0:00:11]} 5. dxc5 {[%emt 0:00:10]} e5 {[%emt 0:01:07]} 6. e4 {[%emt 0:00:40]} d4 {[%emt 0:08:21]} 7. Bc4 {[%emt 0:04:03]} Bxc5 {[%emt 0:01:05]} 8. Ne2 {[%emt 0:01:22]} Rg8 {[%emt 0:19:54]} 9. O-O {[%emt 0:16:49]} Bg4 {[%emt 0:04:18]} 10. Kh1 {[%emt 0:03:00]} Nc6 {[%emt 0:00:08]} 11. Nb3 {[%emt 0:00:52]} Bb6 {[%emt 0:00:59]} 12. Qd2 {[%emt 0:01:06]} Be6 {[%emt 0:06:59]} 13. Bxe6 {[%emt 0:01:20]} fxe6 {[%emt 0:00:09]} 14. f4 {[%emt 0:01:00]} Qe7 {[%emt 0:08:17]} 15. f5 {[%emt 0:06:05]} O-O-O {[%emt 0:01:22]} 16. Ng3 {[%emt 0:11:40]} exf5 {[%emt 0:04:29]} 17. Rxf5 {[%emt 0:02:09]} Rg6 {[%emt 0:03:23]} 18. Raf1 {[%emt 0:01:20]} d3 {[%emt 0:05:14]} 19. c3 {[%emt 0:01:12]} a5 {[%emt 0:05:15]} 20. R5f3 {[%emt 0:02:37]} Qd7 {[%emt 0:02:46]} 21. Nc1 {[%emt 0:03:37]} Qg4 {[%emt 0:01:53]} 22. Nxd3 {[%emt 0:03:23]} Qh4 {[%emt 0:05:45]} 23. Qe2 {[%emt 0:05:11]} Ne7 {[%emt 0:01:22]} 24. Nf2 {[%emt 0:12:10]} Kb8 {[%emt 0:02:43]} 25. Nh3 {[%emt 0:01:49]} Ka7 {[%emt 0:02:49]} 26. Rd3 {[%emt 0:01:57]} Rxd3 {[%emt 0:00:51]} 27. Qxd3 {[%emt 0:00:05]} Qg4 {[%emt 0:00:03]} 28. Qf3 {[%emt 0:04:55]} Qe6 {[%emt 0:00:02]} 29. b3 {[%emt 0:00:13]} a4 {[%emt 0:02:41]} 30. Qd3 {[%emt 0:00:47]} Nc6 {[%emt 0:03:38]} 31. Qb5 {[%emt 0:00:18]} axb3 {[%emt 0:00:39]} 32. axb3 {[%emt 0:00:04]} Bc7 {[%emt 0:00:25]} 33. Nf2 {[%emt 0:02:53]} Na5 {[%emt 0:01:30]} 34. Ra1 {[%emt 0:02:08]} Qb6 {[%emt 0:00:11]} 35. Qxb6+ {[%emt 0:00:03]} Kxb6 {[%emt 0:00:01]} 36. Nd3 {[%emt 0:01:28]} Bd6 {[%emt 0:01:01]} 37. Nf5 {[%emt 0:00:14]} Bf8 {[%emt 0:00:03]} 38. Ne3 {[%emt 0:00:07]} Nc6 {[%emt 0:01:47]} 39. Nd5+ {[%emt 0:00:07]} 1-0

[Event "Charlotte Spring Classic 2021"]
[Site "Charlotte"]
[Date "2021.03.27"]
[Round "2.2"]
[White "Ippolito, Dean"]
[Black "Singh, Hersh"]
[Result "1-0"]
[ECO "E02"]
[WhiteElo "2369"]
[BlackElo "2131"]
[Annotator "NA"]
[PlyCount "47"]
[EventDate "2021.03.22"]
[EventType "swiss"]
[EventCountry "USA"]
[SourceTitle "playchess.com"]
[Source "ChessBase"]
[SourceQuality "1"]
[TimeControl "5400+30"]

1. d4 {[%emt 0:00:00]} d5 {[%emt 0:00:00]} 2. c4 {[%emt 0:00:00]} e6 {[%emt 0:00:00]} 3. Nf3 {[%emt 0:00:00]} Nf6 {[%emt 0:00:00]} 4. g3 {[%emt 0:00:00]} dxc4 {[%emt 0:00:00]} 5. Bg2 {[%emt 0:00:00]} Nc6 {[%emt 0:00:00]} 6. Qa4 {[%emt 0:00:12]} Bd7 {[%emt 0:00:08]} 7. Qxc4 {[%emt 0:00:07]} Na5 {[%emt 0:00:07]} 8. Qc3 {[%emt 0:00:05]} c5 {[%emt 0:04:07]} 9. Bd2 {[%emt 0:00:38]} Nc6 {[%emt 0:01:18]} 10. dxc5 {[%emt 0:00:21]} Ne4 {[%emt 0:01:07]} 11. Qc2 {[%emt 0:00:21]} Nxc5 {[%emt 0:00:34]} 12. b4 {[%emt 0:00:14]} Na6 {[%emt 0:07:23]} 13. b5 {[%emt 0:00:05]} Ncb4 {[%emt 0:02:33]} 14. Qb2 {[%emt 0:00:07]} Bxb5 {[%emt 0:14:28]} 15. a3 {[%emt 0:01:02]} Qd3 {[%emt 0:19:37]} 16. O-O {[%emt 0:00:25]} Qc2 {[%emt 0:06:12]} 17. Qe5 {[%emt 0:00:26]} Nd5 {[%emt 0:06:56]} 18. Rc1 {[%emt 0:38:14]} Qa4 {[%emt 0:02:54]} 19. Nd4 {[%emt 0:14:58]} Be7 {[%emt 0:07:28]} 20. Nxe6 {[%emt 0:01:52]} fxe6 {[%emt 0:06:00]} 21. Bxd5 {[%emt 0:01:29]} exd5 {[%emt 0:04:24]} 22. Nc3 {[%emt 0:00:42]} Qg4 {[%emt 0:05:52]} 23. Nxb5 {[%emt 0:09:02]} Qe4 {[%emt 0:06:55]} 24. Nd6+ {[%emt 0:00:59]} 1-0

[Event "Charlotte Spring Classic 2021"]
[Site "Charlotte"]
[Date "2021.03.27"]
[Round "2.3"]
[White "Tsyganov, Igor"]
[Black "Sarkar, Justin"]
[Result "1/2-1/2"]
[ECO "D27"]
[WhiteElo "2221"]
[BlackElo "2365"]
[Annotator "NA"]
[PlyCount "60"]
[EventDate "2021.03.22"]
[EventType "swiss"]
[EventCountry "USA"]
[SourceTitle "playchess.com"]
[Source "ChessBase"]
[SourceQuality "1"]
[TimeControl "5400+30"]

1. d4 {[%emt 0:02:57]} Nf6 {[%emt 0:01:28]} 2. Nf3 {[%emt 0:00:10]} d5 {[%emt 0:00:29]} 3. c4 {[%emt 0:00:10]} e6 {[%emt 0:00:43]} 4. Nc3 {[%emt 0:00:22]} dxc4 {[%emt 0:01:13]} 5. e3 {[%emt 0:00:26]} a6 {[%emt 0:00:16]} 6. a4 {[%emt 0:00:24]} c5 {[%emt 0:03:03]} 7. Bxc4 {[%emt 0:00:11]} Nc6 {[%emt 0:00:21]} 8. O-O {[%emt 0:00:21]} Qc7 {[%emt 0:00:27]} 9. Qe2 {[%emt 0:05:32]} Bd6 {[%emt 0:00:13]} 10. dxc5 {[%emt 0:02:15]} Bxc5 {[%emt 0:00:09]} 11. e4 {[%emt 0:02:18]} Ng4 {[%emt 0:01:41]} 12. g3 {[%emt 0:03:32]} Nge5 {[%emt 0:01:12]} 13. Nxe5 {[%emt 0:03:45]} Nxe5 {[%emt 0:00:21]} 14. Ba2 {[%emt 0:02:39]} b6 {[%emt 0:19:59]} 15. Bf4 {[%emt 0:01:35]} h6 {[%emt 0:16:27]} 16. Qh5 {[%emt 0:08:31]} g5 {[%emt 0:00:21]} 17. Bxg5 {[%emt 0:07:09]} Nf3+ {[%emt 0:00:18]} 18. Qxf3 {[%emt 0:00:06]} hxg5 {[%emt 0:00:03]} 19. Qf6 {[%emt 0:03:35]} Rg8 {[%emt 0:00:12]} 20. Rfe1 {[%emt 0:10:53]} Be7 {[%emt 0:09:43]} 21. Nd5 {[%emt 0:04:11]} exd5 {[%emt 0:01:50]} 22. exd5 {[%emt 0:00:09]} Kf8 {[%emt 0:07:02]} 23. Qh6+ {[%emt 0:11:47]} Rg7 {[%emt 0:00:07]} 24. Qh8+ {[%emt 0:06:32]} Rg8 {[%emt 0:00:01]} 25. Qh6+ {[%emt 0:00:08]} Rg7 {[%emt 0:00:04]} 26. d6 {[%emt 0:23:22]} Qxd6 {[%emt 0:35:17]} 27. Qh8+ {[%emt 0:00:30]} Rg8 28. Qh5 {[%emt 0:00:30]} Be6 {[%emt 0:01:00]} 29. Bxe6 {[%emt 0:00:30]} fxe6 {[%emt 0:00:30]} 30. Qf3+ Kg7 {[%emt 0:00:30]} 1/2-1/2

[Event "Charlotte Spring Classic 2021"]
[Site "Charlotte"]
[Date "2021.03.27"]
[Round "2.5"]
[White "Espinosa Silva, Pedro"]
[Black "Vigorito, David"]
[Result "1/2-1/2"]
[ECO "B51"]
[WhiteElo "1755"]
[BlackElo "2339"]
[Annotator "NA"]
[PlyCount "46"]
[EventDate "2021.03.22"]
[EventType "swiss"]
[EventCountry "USA"]
[SourceTitle "playchess.com"]
[Source "ChessBase"]
[SourceQuality "1"]
[TimeControl "5400+30"]

1. e4 {[%emt 0:00:00]} c5 {[%emt 0:00:00]} 2. Nf3 {[%emt 0:00:00]} d6 {[%emt 0:00:05]} 3. Bb5+ {[%emt 0:00:00]} Nd7 {[%emt 0:00:46]} 4. a4 {[%emt 0:00:12]} Ngf6 {[%emt 0:01:08]} 5. Nc3 {[%emt 0:00:30]} g6 {[%emt 0:01:12]} 6. d4 {[%emt 0:01:12]} cxd4 {[%emt 0:00:47]} 7. Nxd4 {[%emt 0:00:22]} Bg7 {[%emt 0:00:33]} 8. O-O {[%emt 0:01:16]} O-O {[%emt 0:00:31]} 9. Be3 {[%emt 0:00:55]} a6 {[%emt 0:14:06]} 10. Be2 {[%emt 0:01:09]} e6 {[%emt 0:07:00]} 11. Qd2 {[%emt 0:02:30]} Qc7 {[%emt 0:02:38]} 12. a5 {[%emt 0:03:36]} b6 {[%emt 0:01:58]} 13. axb6 {[%emt 0:01:50]} Nxb6 {[%emt 0:00:13]} 14. Ndb5 {[%emt 0:08:47]} axb5 {[%emt 0:01:10]} 15. Bxb6 {[%emt 0:04:02]} Qb8 {[%emt 0:06:04]} 16. Bc7 {[%emt 0:06:59]} Qxc7 {[%emt 0:04:26]} 17. Rxa8 {[%emt 0:00:25]} b4 {[%emt 0:00:10]} 18. Nb5 {[%emt 0:01:48]} Qc6 {[%emt 0:00:21]} 19. Ra7 {[%emt 0:05:33]} Nxe4 {[%emt 0:01:03]} 20. Qxb4 {[%emt 0:01:16]} Qxc2 {[%emt 0:02:07]} 21. Bd1 {[%emt 0:04:30]} Qxb2 {[%emt 0:01:32]} 22. Qxb2 {[%emt 0:04:51]} Bxb2 {[%emt 0:02:15]} 23. Bc2 {[%emt 0:00:31]} d5 {[%emt 0:04:36]} 1/2-1/2

[Event "Charlotte Spring Classic 2021"]
[Site "Charlotte"]
[Date "2021.03.27"]
[Round "2.6"]
[White "Graif, William"]
[Black "Lancman, Kyle"]
[Result "1-0"]
[ECO "B27"]
[WhiteElo "2257"]
[BlackElo "1747"]
[Annotator "ChessBase"]
[PlyCount "113"]
[EventDate "2021.03.22"]
[EventType "swiss"]
[EventCountry "USA"]
[SourceTitle "playchess.com"]
[Source "ChessBase"]
[SourceQuality "1"]
[TimeControl "5400+30"]

1. e4 {[%emt 0:04:01]} c5 {[%emt 0:00:00]} 2. Nc3 {[%emt 0:00:08]} g6 {[%emt 0:00:00]} 3. d4 {[%emt 0:00:13]} cxd4 {[%emt 0:00:00]} 4. Qxd4 {[%emt 0:00:21]} Nf6 {[%emt 0:00:09]} 5. Nf3 {[%emt 0:00:08]} Nc6 {[%emt 0:00:38]} 6. Qa4 {[%emt 0:00:06]} d6 {[%emt 0:00:40]} 7. e5 {[%emt 0:00:06]} dxe5 {[%emt 0:02:44]} 8. Nxe5 {[%emt 0:00:09]} Bd7 {[%emt 0:00:07]} 9. Nxd7 {[%emt 0:00:15]} Qxd7 {[%emt 0:04:01]} 10. Be3 {[%emt 0:00:10]} Bg7 {[%emt 0:02:06]} 11. Rd1 {[%emt 0:00:10]} Qg4 {[%emt 0:06:29]} 12. Qb3 {[%emt 0:00:18]} Qb4 {[%emt 0:06:57]} 13. Qxb4 {[%emt 0:16:27]} Nxb4 {[%emt 0:00:08]} 14. Bb5+ {[%emt 0:00:12]} Nc6 {[%emt 0:01:38]} 15. O-O {[%emt 0:01:25]} O-O {[%emt 0:03:10]} 16. Bc5 {[%emt 0:01:29]} Rfe8 {[%emt 0:03:30]} 17. Rfe1 {[%emt 0:01:14]} e6 {[%emt 0:01:45]} 18. Na4 {[%emt 0:21:47]} Rac8 {[%emt 0:09:51]} 19. g3 {[%emt 0:17:54]} Bf8 {[%emt 0:09:21]} 20. c3 {[%emt 0:13:32]} Bxc5 {[%emt 0:13:34]} 21. Nxc5 {[%emt 0:00:02]} Re7 {[%emt 0:03:35]} 22. Rd6 {[%emt 0:06:52]} b6 {[%emt 0:13:48]} 23. Ne4 {[%emt 0:06:13]} Nxe4 {[%emt 0:00:35]} 24. Rxe4 {[%emt 0:00:06]} Rec7 {[%emt 0:05:26]} 25. Rf4 {[%emt 0:03:11]} Nd8 {[%emt 0:03:01]} 26. Kf1 {[%emt 0:03:49]} Nb7 {[%emt 0:01:13]} 27. Rd2 {[%emt 0:00:06]} Rd8 {[%emt 0:01:34]} 28. Rxd8+ {[%emt 0:00:28]} Nxd8 {[%emt 0:00:09]} 29. Rd4 {[%emt 0:00:03]} Nb7 {[%emt 0:08:21]} 30. Ke2 {[%emt 0:02:10]} h5 {[%emt 0:00:00]} 31. Ke3 {[%emt 0:01:37]} Kf8 {[%emt 0:00:00]} 32. Rc4 {[%emt 0:00:41]} Rxc4 {[%emt 0:00:00]} 33. Bxc4 {[%emt 0:00:01]} Ke7 {[%emt 0:00:00]} 34. Kd4 {[%emt 0:00:15]} Kd6 {[%emt 0:00:00]} 35. f4 {[%emt 0:00:14]} a5 {[%emt 0:00:00]} 36. Be2 {[%emt 0:00:46]} Nd8 {[%emt 0:00:15]} 37. Bf3 {[%emt 0:00:55]} f6 {[%emt 0:00:22]} 38. Kc4 {[%emt 0:00:46]} Nf7 {[%emt 0:01:02]} 39. b4 {[%emt 0:00:35]} axb4 {[%emt 0:00:39]} 40. cxb4 {[%emt 0:00:08]} e5 {[%emt 0:00:55]} 41. f5 {[%emt 0:00:48]} gxf5 {[%emt 0:01:49]} 42. Bxh5 {[%emt 0:00:02]} Nh6 {[%emt 0:00:42]} 43. h4 {[%emt 0:00:41]} e4 {[%emt 0:00:36]} 44. a4 {[%emt 0:00:31]} f4 {[%emt 0:00:25]} 45. gxf4 {[%emt 0:00:09]} Nf5 {[%emt 0:00:09]} 46. Bg6 {[%emt 0:00:17]} Nxh4 {[%emt 0:00:08]} 47. Bxe4 {[%emt 0:00:06]} f5 {[%emt 0:00:24]} 48. Bh1 {[%emt 0:01:28]} Ng6 {[%emt 0:00:37]} 49. a5 {[%emt 0:00:14]} bxa5 {[%emt 0:00:16]} 50. bxa5 {[%emt 0:00:06]} Kc7 {[%emt 0:00:39]} 51. Kb5 {[%emt 0:01:10]} Kb8 {[%emt 0:01:29]} 52. Kb6 {[%emt 0:00:08]} Nf8 {[%emt 0:00:14]} 53. Bc6 {[%emt 0:00:35]} Ne6 {[%emt 0:00:47]} 54. a6 {[%emt 0:00:17]} Nc7 {[%emt 0:00:18]} 55. a7+ {[%emt 0:00:23]} Kc8 {[%emt 0:00:21]} 56. a8=Q+ {[%emt 0:00:33]} Nxa8+ {[%emt 0:00:07]} 57. Bxa8 {[%emt 0:00:05]} 1-0

[Event "Charlotte Spring Classic 2021"]
[Site "Charlotte"]
[Date "2021.03.27"]
[Round "2.7"]
[White "Ladan, Nicholas"]
[Black "Titus, Andrew"]
[Result "0-1"]
[ECO "E05"]
[WhiteElo "1871"]
[BlackElo "2158"]
[Annotator "NA"]
[PlyCount "60"]
[EventDate "2021.03.22"]
[EventType "swiss"]
[EventCountry "USA"]
[SourceTitle "playchess.com"]
[Source "ChessBase"]
[SourceQuality "1"]
[TimeControl "5400+30"]

1. d4 {[%emt 0:01:50]} d5 {[%emt 0:00:00]} 2. c4 {[%emt 0:00:05]} e6 {[%emt 0:00:00]} 3. Nf3 {[%emt 0:00:06]} Nf6 {[%emt 0:00:00]} 4. g3 {[%emt 0:00:08]} Be7 {[%emt 0:00:00]} 5. Bg2 {[%emt 0:00:06]} O-O {[%emt 0:00:01]} 6. O-O {[%emt 0:00:07]} dxc4 {[%emt 0:00:02]} 7. Qc2 {[%emt 0:00:09]} b5 {[%emt 0:00:09]} 8. a4 {[%emt 0:01:04]} b4 {[%emt 0:02:26]} 9. Nfd2 {[%emt 0:00:45]} c6 {[%emt 0:01:17]} 10. e3 {[%emt 0:04:26]} b3 {[%emt 0:02:33]} 11. Qxc4 {[%emt 0:07:35]} Ba6 {[%emt 0:00:10]} 12. Qxb3 {[%emt 0:00:06]} Bxf1 {[%emt 0:00:18]} 13. Kxf1 {[%emt 0:01:56]} Nbd7 {[%emt 0:02:18]} 14. Na3 {[%emt 0:04:06]} Rb8 {[%emt 0:03:08]} 15. Qc4 {[%emt 0:02:01]} c5 {[%emt 0:09:13]} 16. Nb5 {[%emt 0:00:08]} Nb6 {[%emt 0:11:04]} 17. Qe2 {[%emt 0:01:35]} Qd7 {[%emt 0:02:00]} 18. dxc5 {[%emt 0:08:14]} Bxc5 {[%emt 0:00:40]} 19. Nb3 {[%emt 0:00:17]} Nxa4 {[%emt 0:02:29]} 20. Nxc5 {[%emt 0:01:57]} Nxc5 {[%emt 0:02:09]} 21. Nd4 {[%emt 0:00:55]} Rfc8 {[%emt 0:01:13]} 22. b4 {[%emt 0:01:08]} Rxb4 {[%emt 0:02:12]} 23. Ba3 {[%emt 0:00:40]} Ra4 {[%emt 0:00:59]} 24. Qc2 {[%emt 0:02:09]} e5 {[%emt 0:04:13]} 25. Nc6 {[%emt 0:04:11]} Rxc6 {[%emt 0:01:04]} 26. Bxc6 {[%emt 0:00:20]} Qxc6 {[%emt 0:00:48]} 27. Rd1 {[%emt 0:00:08]} Rxa3 {[%emt 0:01:17]} 28. Rd8+ {[%emt 0:02:36]} Ne8 {[%emt 0:00:01]} 29. Qxc5 {[%emt 0:00:59]} Qxc5 {[%emt 0:00:13]} 30. Rxe8+ {[%emt 0:00:06]} Qf8 {[%emt 0:00:06]} 0-1

[Event "Charlotte Spring Classic 2021"]
[Site "Charlotte"]
[Date "2021.03.27"]
[Round "2.8"]
[White "Kumar, Asha"]
[Black "Wu, Derek"]
[Result "0-1"]
[ECO "E94"]
[WhiteElo "1643"]
[BlackElo "2190"]
[Annotator "ChessBase"]
[PlyCount "98"]
[EventDate "2021.03.22"]
[EventType "swiss"]
[EventCountry "USA"]
[SourceTitle "playchess.com"]
[Source "ChessBase"]
[SourceQuality "1"]
[TimeControl "5400+30"]

1. d4 {[%emt 0:00:00]} Nf6 {[%emt 0:00:00]} 2. c4 {[%emt 0:00:00]} g6 {[%emt 0:00:00]} 3. Nc3 {[%emt 0:00:00]} Bg7 {[%emt 0:00:00]} 4. e4 {[%emt 0:00:00]} d6 {[%emt 0:00:08]} 5. Nf3 {[%emt 0:00:00]} O-O {[%emt 0:00:11]} 6. Be2 {[%emt 0:00:01]} e5 {[%emt 0:00:09]} 7. O-O {[%emt 0:00:19]} exd4 {[%emt 0:00:22]} 8. Nxd4 {[%emt 0:00:08]} Re8 {[%emt 0:00:17]} 9. f3 {[%emt 0:01:49]} c6 {[%emt 0:00:15]} 10. Nc2 {[%emt 0:07:04]} Na6 {[%emt 0:00:39]} 11. Bf4 {[%emt 0:04:22]} Nh5 {[%emt 0:17:58]} 12. Bxd6 {[%emt 0:04:31]} Qb6+ {[%emt 0:00:08]} 13. Kh1 {[%emt 0:04:08]} Qxb2 {[%emt 0:06:12]} 14. Na4 {[%emt 0:00:42]} Qf6 {[%emt 0:00:13]} 15. c5 {[%emt 0:04:20]} Nf4 {[%emt 0:03:58]} 16. Bxa6 {[%emt 0:03:55]} bxa6 {[%emt 0:00:26]} 17. Qd2 {[%emt 0:11:15]} g5 {[%emt 0:04:57]} 18. Rae1 {[%emt 0:07:18]} Be6 {[%emt 0:01:37]} 19. Nb4 {[%emt 0:10:55]} Bc4 {[%emt 0:01:49]} 20. Rf2 {[%emt 0:00:42]} Bb5 {[%emt 0:01:06]} 21. e5 {[%emt 0:02:09]} Qf5 {[%emt 0:07:57]} 22. g4 {[%emt 0:04:46]} Qe6 {[%emt 0:02:13]} 23. Nc3 {[%emt 0:01:23]} Rac8 {[%emt 0:05:16]} 24. Nxb5 {[%emt 0:12:30]} axb5 {[%emt 0:00:06]} 25. Re4 {[%emt 0:03:33]} Qg6 {[%emt 0:06:17]} 26. Nd3 {[%emt 0:01:14]} Nd5 {[%emt 0:04:52]} 27. Rfe2 {[%emt 0:00:57]} h5 {[%emt 0:05:05]} 28. h3 {[%emt 0:01:26]} Re6 {[%emt 0:04:17]} 29. Rg2 {[%emt 0:01:34]} h4 {[%emt 0:01:30]} 30. Rge2 {[%emt 0:01:03]} Bh6 {[%emt 0:01:12]} 31. Re1 {[%emt 0:01:05]} Rce8 {[%emt 0:01:36]} 32. Qa5 {[%emt 0:00:49]} f5 {[%emt 0:02:06]} 33. Rd4 {[%emt 0:03:37]} fxg4 {[%emt 0:00:40]} 34. fxg4 {[%emt 0:00:15]} Qf7 {[%emt 0:02:41]} 35. Kg2 {[%emt 0:00:02]} Bf8 {[%emt 0:01:17]} 36. Qd2 {[%emt 0:00:33]} Qg6 {[%emt 0:00:47]} 37. Rf1 {[%emt 0:03:22]} Bg7 {[%emt 0:00:43]} 38. Rf5 {[%emt 0:00:21]} Bh6 {[%emt 0:01:09]} 39. Qf2 {[%emt 0:01:08]} a5 {[%emt 0:01:38]} 40. a3 {[%emt 0:00:06]} Ra8 {[%emt 0:02:34]} 41. Rxd5 {[%emt 0:01:58]} cxd5 {[%emt 0:00:01]} 42. c6 {[%emt 0:00:15]} Bg7 {[%emt 0:02:10]} 43. Nc5 {[%emt 0:00:55]} Rxd6 {[%emt 0:00:37]} 44. exd6 {[%emt 0:00:06]} Qxd6 {[%emt 0:00:01]} 45. Rxg5 {[%emt 0:00:56]} Qxc6 {[%emt 0:00:54]} 46. Qb2 {[%emt 0:00:50]} d4+ {[%emt 0:00:08]} 47. Kg1 {[%emt 0:00:23]} Qf6 {[%emt 0:04:59]} 48. Ne4 {[%emt 0:01:27]} Qe7 {[%emt 0:01:12]} 49. Qxd4 {[%emt 0:00:50]} Qxg5 {[%emt 0:00:30]} 0-1

[Event "Charlotte Spring Classic 2021"]
[Site "Charlotte"]
[Date "2021.03.28"]
[Round "4.3"]
[White "Wang, Tianqi"]
[Black "Wu, Derek"]
[Result "1-0"]
[ECO "B23"]
[WhiteElo "2305"]
[BlackElo "2190"]
[Annotator "NA"]
[PlyCount "79"]
[EventDate "2021.03.22"]
[EventType "swiss"]
[EventCountry "USA"]
[SourceTitle "playchess.com"]
[Source "ChessBase"]
[SourceQuality "1"]
[TimeControl "5400+30"]

1. e4 {[%emt 0:02:44]} c5 {[%emt 0:00:00]} 2. Nc3 {[%emt 0:00:09]} a6 {[%emt 0:00:02]} 3. g3 {[%emt 0:00:04]} b5 {[%emt 0:00:09]} 4. Bg2 {[%emt 0:00:03]} Bb7 {[%emt 0:00:08]} 5. d3 {[%emt 0:00:06]} e6 {[%emt 0:00:12]} 6. Nh3 {[%emt 0:00:04]} b4 {[%emt 0:00:49]} 7. Ne2 {[%emt 0:01:07]} d5 {[%emt 0:00:45]} 8. O-O {[%emt 0:00:31]} dxe4 {[%emt 0:03:30]} 9. dxe4 {[%emt 0:00:55]} Qxd1 {[%emt 0:00:56]} 10. Rxd1 {[%emt 0:00:09]} Nf6 {[%emt 0:00:09]} 11. e5 {[%emt 0:01:14]} Bxg2 {[%emt 0:00:07]} 12. Kxg2 {[%emt 0:00:03]} Nfd7 {[%emt 0:00:09]} 13. f4 {[%emt 0:00:08]} Nb6 {[%emt 0:02:04]} 14. Ng5 {[%emt 0:04:44]} N8d7 {[%emt 0:05:51]} 15. a4 {[%emt 0:06:57]} Be7 {[%emt 0:03:46]} 16. Ne4 {[%emt 0:01:45]} f6 {[%emt 0:03:34]} 17. exf6 {[%emt 0:05:49]} gxf6 {[%emt 0:00:19]} 18. a5 {[%emt 0:01:25]} Nd5 {[%emt 0:03:20]} 19. f5 {[%emt 0:02:59]} O-O-O {[%emt 0:06:06]} 20. fxe6 {[%emt 0:03:52]} Nf8 {[%emt 0:00:15]} 21. Rf1 {[%emt 0:18:04]} Nxe6 {[%emt 0:01:29]} 22. c4 {[%emt 0:03:21]} bxc3 {[%emt 0:01:27]} 23. N2xc3 {[%emt 0:02:17]} Rhf8 {[%emt 0:03:49]} 24. Bh6 {[%emt 0:01:42]} Rf7 {[%emt 0:01:41]} 25. Rae1 {[%emt 0:00:21]} f5 {[%emt 0:07:14]} 26. Nxd5 {[%emt 0:01:36]} Rxd5 {[%emt 0:00:04]} 27. Nc3 {[%emt 0:00:06]} Rd6 {[%emt 0:00:05]} 28. Re5 {[%emt 0:00:54]} Nc7 {[%emt 0:07:54]} 29. Bc1 {[%emt 0:00:51]} Ne6 {[%emt 0:11:57]} 30. Rexf5 {[%emt 0:00:48]} Rxf5 {[%emt 0:00:33]} 31. Rxf5 {[%emt 0:00:09]} Bd8 {[%emt 0:00:13]} 32. Ne4 {[%emt 0:02:04]} Rd1 {[%emt 0:08:02]} 33. Bd2 {[%emt 0:02:18]} Kd7 {[%emt 0:01:39]} 34. Rf7+ {[%emt 0:00:38]} Kc6 {[%emt 0:00:05]} 35. Rxh7 {[%emt 0:00:18]} Rb1 {[%emt 0:01:18]} 36. Rh6 {[%emt 0:00:49]} Kd7 {[%emt 0:00:12]} 37. Bc3 {[%emt 0:00:10]} Bxa5 {[%emt 0:01:14]} 38. Bxa5 {[%emt 0:00:44]} Rxb2+ {[%emt 0:00:03]} 39. Kh3 {[%emt 0:00:30]} Ra2 {[%emt 0:00:28]} 40. Bc3 {[%emt 0:00:19]} 1-0

[Event "Charlotte Spring Classic 2021"]
[Site "Charlotte"]
[Date "2021.03.28"]
[Round "4.4"]
[White "Aaron, Deepak"]
[Black "Wu, Rochelle"]
[Result "1-0"]
[ECO "B77"]
[WhiteElo "2300"]
[BlackElo "2126"]
[Annotator "NA"]
[PlyCount "61"]
[EventDate "2021.03.22"]
[EventType "swiss"]
[EventCountry "USA"]
[SourceTitle "playchess.com"]
[Source "ChessBase"]
[SourceQuality "1"]
[TimeControl "5400+30"]

1. e4 {[%emt 0:01:30]} c5 {[%emt 0:00:00]} 2. Nf3 {[%emt 0:00:02]} d6 {[%emt 0:00:00]} 3. d4 {[%emt 0:00:01]} cxd4 {[%emt 0:00:03]} 4. Nxd4 {[%emt 0:00:02]} Nf6 {[%emt 0:00:10]} 5. Nc3 {[%emt 0:00:04]} g6 {[%emt 0:01:03]} 6. Be3 {[%emt 0:00:38]} Bg7 {[%emt 0:00:28]} 7. f3 {[%emt 0:00:04]} O-O {[%emt 0:00:09]} 8. Qd2 {[%emt 0:00:03]} Nc6 {[%emt 0:00:16]} 9. Bc4 {[%emt 0:00:06]} Bd7 {[%emt 0:00:14]} 10. h4 {[%emt 0:00:07]} Rc8 {[%emt 0:00:50]} 11. Bb3 {[%emt 0:00:05]} Nxd4 {[%emt 0:02:31]} 12. Bxd4 {[%emt 0:01:14]} b5 {[%emt 0:03:18]} 13. h5 {[%emt 0:03:50]} e6 {[%emt 0:04:42]} 14. hxg6 {[%emt 0:03:31]} fxg6 {[%emt 0:00:32]} 15. O-O-O {[%emt 0:04:44]} b4 {[%emt 0:06:40]} 16. Ne2 {[%emt 0:20:40]} a5 {[%emt 0:02:00]} 17. Nf4 {[%emt 0:02:42]} Qe7 {[%emt 0:04:22]} 18. Qe2 {[%emt 0:05:38]} a4 {[%emt 0:02:09]} 19. Bc4 {[%emt 0:02:20]} Rxc4 {[%emt 0:05:51]} 20. Qxc4 {[%emt 0:01:47]} Rc8 {[%emt 0:03:50]} 21. Qxb4 {[%emt 0:02:05]} e5 {[%emt 0:01:42]} 22. Bc3 {[%emt 0:00:25]} Rxc3 {[%emt 0:13:21]} 23. bxc3 {[%emt 0:02:00]} exf4 {[%emt 0:01:00]} 24. Qxd6 {[%emt 0:01:05]} Qxd6 {[%emt 0:12:14]} 25. Rxd6 {[%emt 0:01:06]} Bb5 {[%emt 0:00:11]} 26. Rb6 {[%emt 0:03:29]} Bc4 {[%emt 0:00:22]} 27. Rd1 {[%emt 0:03:19]} Kf8 {[%emt 0:04:08]} 28. Rd4 {[%emt 0:05:53]} Bxa2 {[%emt 0:01:12]} 29. e5 {[%emt 0:05:41]} Nd5 {[%emt 0:08:18]} 30. Rb8+ {[%emt 0:01:38]} Kf7 {[%emt 0:00:49]} 31. Rxa4 {[%emt 0:03:44]} 1-0